Cogmind - Beta 14 @@@ ROGUE MODE // 2024.08.16 @ 01:47:30 Player: Olafz Result: Destroyed by S-43 Plague with Heavy Machine Gun Performance ------------- Evolutions (7) 3500 Regions Visited (8) 1600 Robots Destroyed (0) 0 Value Destroyed (0) 0 Prototype IDs (6) 120 Alien Tech Used (0) 0 Bonus (4085) 4085 TOTAL SCORE: 9305 Bonus ------- Pacifist 4085 Cogmind --------- Core Integrity 0/1300 Matter 140/300 Energy 4/100 System Corruption 0% Temperature Cool (12) Movement Flying (45) Location -3/Research Parts ------- > --- POWER (1) -------- (None) > --- PROPULSION (4) --- Impulse Thruster Array > --- UTILITY (14) ----- Advanced Visual Processing Unit Enhanced Optical Array Improved Signal Interpreter Advanced Signal Interpreter ECM Suite > --- WEAPON (2) ------- (None) > --- INVENTORY (5) ---- (None) Peak State ------------ > --- POWER ------------ Micro Fission Core > --- PROPULSION ------- Cooled VTOL Module Impulse Thruster Impulse Thruster Array > --- UTILITY ---------- Advanced Visual Processing Unit Enhanced Optical Array Improved Signal Interpreter Improved Signal Interpreter Advanced Signal Interpreter Experimental Terrain Scan Processor Hacking Suite Hacking Suite Hacking Suite Improved Hacking Suite > --- WEAPON ----------- Katana > --- INVENTORY -------- Nuclear Pulse Array Impulse Thruster Impulse Thruster Array [Rating: 81] Favorites ----------- Power Micro Fission Core Engine Improved Ion Engine Power Core Micro Fission Core Propulsion Cesium-ion Thruster Flight Unit Cesium-ion Thruster Utility Hacking Suite Device Advanced Sensor Array Processor Improved Signal Interpreter Hackware Hacking Suite Protection Medium Armor Plating Weapon Katana Slashing Weapon Katana Build | -11 -10 -9 -8 -7 -6 -5 -4 -3 ------- Run | Yrd Mat Mat Mat Fac Fac Fac Fac Res Slots Evolved 14 | . . 2 2 2 2 2 2 2 Power . | . . . . . . . . . Propulsion 2 | . . . 1 1 . . . . Utility 12 | . . 2 1 1 2 2 2 2 Weapon . | . . . . . . . . . Parts Attached 42 | . . 5 4 2 4 11 8 8 Power 4 | . . . 1 . . 1 1 1 Engine 1 | . . . 1 . . . . . Core 3 | . . . . . . 1 1 1 Reactor . | . . . . . . . . . Propulsion 20 | . . 2 1 1 1 7 3 5 Treads . | . . . . . . . . . Leg . | . . . . . . . . . Wheel . | . . . . . . . . . Hover . | . . . . . . . . . Flight 20 | . . 2 1 1 1 7 3 5 Utility 17 | . . 3 2 1 3 3 3 2 Device 4 | . . . . . . 2 1 1 Storage . | . . . . . . . . . Processor 6 | . . 2 1 . 2 . 1 . Hackware 5 | . . . 1 1 . 1 1 1 Protection 2 | . . 1 . . 1 . . . Artifact . | . . . . . . . . . Weapon 1 | . . . . . . . 1 . Energy Gun . | . . . . . . . . . Energy Cannon . | . . . . . . . . . Ballistic Gun . | . . . . . . . . . Ballistic Cannon . | . . . . . . . . . Launcher . | . . . . . . . . . Special Weapon . | . . . . . . . . . Impact Weapon . | . . . . . . . . . Slashing Weapon 1 | . . . . . . . 1 . Piercing Weapon . | . . . . . . . . . Special Melee Weapon . | . . . . . . . . . Unidentified Prototypes 4 | . . . . . . 2 1 1 Parts Lost 29 | . . . . 2 . 6 5 16 Power 3 | . . . . 1 . . . 2 Propulsion 15 | . . . . 1 . 5 2 7 Utility 10 | . . . . . . 1 3 6 Weapon 1 | . . . . . . . . 1 Highest Loss Streak 9 | . . . . 1 . 6 2 9 To Critical Strikes . | . . . . . . . . . Average Slot Usage (%) 64 | . . 25 67 75 61 78 86 42 Core 2 | . . . . . . 4 5 . Flight 15 | . . 17 21 25 10 16 20 6 Device 3 | . . . . . . 6 9 1 Processor 24 | . . 1 27 23 32 29 28 25 Hackware 11 | . . . 7 15 13 16 16 5 Protection 2 | . . 7 9 7 4 2 . . Slashing Weapon 1 | . . . . . . . 4 1 Peak Build Rating 81 | . . 13 24 30 36 65 78 81 Average Rating 44 | . . 5 19 26 32 54 74 47 On Entrance 24 | . . . 13 24 19 36 65 66 Naked Turns 39 | . 34 5 . . . . . . Heaviest Build 14 | . . 7 14 14 7 13 10 7 Greatest Support 28 | 3 3 9 14 19 10 25 25 28 Greatest Overweight (x) 1 | . . . . . . . 1 . Average Overweight (x) . | . . . . . . . . . Largest Inventory Capacity 5 | 5 5 5 5 5 5 5 5 5 Average Capacity 5 | 5 5 5 5 5 5 5 5 5 Most Carried 5 | . . 5 5 5 5 5 5 5 Average Carried 4 | . . 3 4 3 4 4 4 4 Final Capacity 5 | 5 5 5 5 5 5 5 5 5 Final Carried 5 | . . 5 4 5 5 5 5 . Class Distribution -------------------- 40% | Hacker-Scout 26% | Mutant 21% | Hacker-Sprinter 8% | Hacker-Mutant 3% | Sprinter Dominant Class ---------------- Mutant | -10/Materials Mutant | -9/Materials Mutant | -8/Materials Hacker-Sprinter | -7/Factory Hacker-Sprinter | -6/Factory Hacker-Scout | -5/Factory Hacker-Scout | -4/Factory Mutant | -3/Research Resources | -11 -10 -9 -8 -7 -6 -5 -4 -3 ----------- Run | Yrd Mat Mat Mat Fac Fac Fac Fac Res Matter Collected 323 | 130 . . . . . 186 . 7 Remotely . | . . . . . . . . . Salvage Created . | . . . . . . . . . Parts . | . . . . . . . . . Haulers Intercepted . | . . . . . . . . . Recyclers Shooed . | . . . . . . . . . Parts Field Recycled . | . . . . . . . . . Retrieved Matter . | . . . . . . . . . Parts Self-Destructed . | . . . . . . . . . Prevented . | . . . . . . . . . Kills | -11 -10 -9 -8 -7 -6 -5 -4 -3 ------- Run | Yrd Mat Mat Mat Fac Fac Fac Fac Res Combat Hostiles Destroyed . | . . . . . . . . . Classes Destroyed . | . . . . . . . . . Best Kill Streak . | . . . . . . . . . Combat Bots Only . | . . . . . . . . . Max Kills in Single Turn . | . . . . . . . . . Gunslinging . | . . . . . . . . . Exploded . | . . . . . . . . . Melee . | . . . . . . . . . Uniques/NPCs Destroyed . | . . . . . . . . . Combat | -11 -10 -9 -8 -7 -6 -5 -4 -3 -------- Run | Yrd Mat Mat Mat Fac Fac Fac Fac Res Hostile Shots Fired 350 | . 4 7 5 10 22 61 68 173 Missed 174 | . . 5 1 5 13 33 40 77 Damage Taken 3849 | . 44 26 99 113 118 773 485 2191 Core 2056 | . 44 15 . 19 30 391 237 1320 Absorbed by Shields . | . . . . . . . . . Core Remaining (%) 88 | 100 82 96 100 97 96 60 79 . Volleys Fired . | . . . . . . . . . Largest . | . . . . . . . . . Hottest . | . . . . . . . . . Shots Fired . | . . . . . . . . . Gun . | . . . . . . . . . Cannon . | . . . . . . . . . Launcher . | . . . . . . . . . Special . | . . . . . . . . . Kinetic . | . . . . . . . . . Thermal . | . . . . . . . . . Explosive . | . . . . . . . . . Electromagnetic . | . . . . . . . . . Robot Hit Streak . | . . . . . . . . . Robot Miss Streak . | . . . . . . . . . Penetration Max . | . . . . . . . . . Secondary Targets . | . . . . . . . . . Shots Hit Robots . | . . . . . . . . . Core Hits 1 | . . . . 1 . . . . Critical Kills . | . . . . . . . . . Critical Parts Destroyed . | . . . . . . . . . Critical Strikes . | . . . . . . . . . Melee Attacks 4 | . . . . . . . 3 1 Impact . | . . . . . . . . . Slashing 4 | . . . . . . . 3 1 Piercing . | . . . . . . . . . Sneak Attacks . | . . . . . . . . . Combat Hostiles . | . . . . . . . . . Follow-up Attacks . | . . . . . . . . . Damage Inflicted 8 | . . . 2 6 . . . . Guns . | . . . . . . . . . Cannons . | . . . . . . . . . Explosions . | . . . . . . . . . Melee . | . . . . . . . . . Ramming 8 | . . . 2 6 . . . . Kinetic . | . . . . . . . . . Thermal . | . . . . . . . . . Explosive . | . . . . . . . . . Electromagnetic . | . . . . . . . . . Impact . | . . . . . . . . . Slashing . | . . . . . . . . . Piercing . | . . . . . . . . . Highest Corruption 3 | . . . . . . 3 . . Average Corruption 1 | . . . . . . 1 . . Corruption Purged . | . . . . . . . . . Corruption Blocked . | . . . . . . . . . Effects 4 | . . . . . . 4 . . Message Errors 1 | . . . . . . 1 . . Matter Fused 2 | . . . . . . 2 . . Energy Discharges 1 | . . . . . . 1 . . Overload Shots . | . . . . . . . . . Overflow Damage . | . . . . . . . . . Projectiles . | . . . . . . . . . Explosions . | . . . . . . . . . Melee . | . . . . . . . . . Knockbacks . | . . . . . . . . . Impact . | . . . . . . . . . Kinetic . | . . . . . . . . . Secondary . | . . . . . . . . . Self-Inflicted Damage 4 | . . . 1 3 . . . . Shots . | . . . . . . . . . Rammed 2 | . . . 1 1 . . . . Targets Rammed 2 | . . . 1 1 . . . . Kicked . | . . . . . . . . . Crushed . | . . . . . . . . . Highest Temperature 38 | . . . 2 . . 38 6 6 Average Temperature 10 | . . . 2 . . 24 6 6 Received Heat Transfer 559 | . 24 15 27 27 . 72 66 328 Siege Activations . | . . . . . . . . . Robots Corrupted . | . . . . . . . . . Combat Hostiles . | . . . . . . . . . Parts Fried . | . . . . . . . . . Impact Corruptions . | . . . . . . . . . Robots Melted . | . . . . . . . . . Combat Hostiles . | . . . . . . . . . Parts Melted . | . . . . . . . . . Heat Transferred . | . . . . . . . . . Parts Sabotaged . | . . . . . . . . . Parts Stolen . | . . . . . . . . . Parts Stripped . | . . . . . . . . . Power Chain Reactions . | . . . . . . . . . Alert | -11 -10 -9 -8 -7 -6 -5 -4 -3 ------- Run | Yrd Mat Mat Mat Fac Fac Fac Fac Res Peak Influence 379 | . 45 48 35 80 139 343 300 379 Initial 152 | . . 18 20 15 34 67 14 152 Average 123 | . 22 24 29 34 62 151 148 255 Maximum Alert Level 1 | . . . . . . 1 1 1 Low Security (%) 74 | 100 100 100 100 100 100 69 60 42 Level 1 25 | . . . . . . 30 39 57 Level 2 . | . . . . . . . . . Level 3 . | . . . . . . . . . Level 4 . | . . . . . . . . . Level 5 . | . . . . . . . . . High Security . | . . . . . . . . . Max Security . | . . . . . . . . . Squads Dispatched 9 | . 1 1 1 2 1 . 1 2 Investigation 4 | . . 1 . 1 . . 1 1 Extermination . | . . . . . . . . . Reinforcement 5 | . 1 . 1 1 1 . . 1 Assault . | . . . . . . . . . Garrison . | . . . . . . . . . Intercept . | . . . . . . . . . Searches Triggered . | . . . . . . . . . Construction Impeded . | . . . . . . . . . Haulers Reinforced . | . . . . . . . . . Active Scanning Responses . | . . . . . . . . . Cargo Convoy Interrupts . | . . . . . . . . . Stealth | -11 -10 -9 -8 -7 -6 -5 -4 -3 --------- Run | Yrd Mat Mat Mat Fac Fac Fac Fac Res Distress Signals 5 | . 1 1 . . . 2 . 1 Communications Jammed . | . . . . . . . . . Distress Signals . | . . . . . . . . . Times Spotted 145 | . 5 7 4 15 13 22 22 57 Peak Tracking Total 22 | . 3 7 3 10 8 13 8 22 Tactical Retreats 18 | . . . . 2 1 4 6 5 Traps | -11 -10 -9 -8 -7 -6 -5 -4 -3 ------- Run | Yrd Mat Mat Mat Fac Fac Fac Fac Res Traps Triggered 4 | . . 1 . 2 . 1 . . Indirectly . | . . . . . . . . . Trap Hack Attempts . | . . . . . . . . . Triggered . | . . . . . . . . . Disarmed . | . . . . . . . . . Reprogrammed . | . . . . . . . . . Reused . | . . . . . . . . . Traps Extracted . | . . . . . . . . . Installed . | . . . . . . . . . Triggered . | . . . . . . . . . Machines | -11 -10 -9 -8 -7 -6 -5 -4 -3 ---------- Run | Yrd Mat Mat Mat Fac Fac Fac Fac Res Machines Disabled . | . . . . . . . . . Max in Single Turn . | . . . . . . . . . Machines Repaired . | . . . . . . . . . Machines Dismantled . | . . . . . . . . . Machines Sabotaged . | . . . . . . . . . Overloaded Fab Kills . | . . . . . . . . . Hacking | -11 -10 -9 -8 -7 -6 -5 -4 -3 --------- Run | Yrd Mat Mat Mat Fac Fac Fac Fac Res Machines Accessed 10 | . . . . 1 2 4 2 1 Terminals 10 | . . . . 1 2 4 2 1 Fabricators . | . . . . . . . . . Repair Stations . | . . . . . . . . . Recycling Units . | . . . . . . . . . Scanalyzers . | . . . . . . . . . Garrison Access . | . . . . . . . . . Total Hacks 36 | . . . . 4 5 21 4 2 Successful 11 | . . . . . 1 8 2 . Failed 25 | . . . . 4 4 13 2 2 Catastrophic 7 | . . . . 1 1 3 1 1 Database Lockouts . | . . . . . . . . . Manual 28 | . . . . 4 5 13 4 2 Terminals 36 | . . . . 4 5 21 4 2 Fabricators . | . . . . . . . . . Repair Stations . | . . . . . . . . . Recycling Units . | . . . . . . . . . Scanalyzers . | . . . . . . . . . Garrison Access . | . . . . . . . . . Terminal Hacks 7 | . . . . . . 6 1 . Robot Analysis 1 | . . . . . . 1 . . Prototype ID Bank 1 | . . . . . . 1 . . Level Access Points 2 | . . . . . . 1 1 . Unreport Threat 3 | . . . . . . 3 . . Fabricator Hacks . | . . . . . . . . . Repair Station Hacks . | . . . . . . . . . Recycling Unit Hacks . | . . . . . . . . . Scanalyzer . | . . . . . . . . . Garrison Access Hacks . | . . . . . . . . . Unauthorized Hacks 4 | . . . . . 1 2 1 . Terminals 4 | . . . . . 1 2 1 . Botnet 4 | . . . . . 1 2 1 . Fabricators . | . . . . . . . . . Repair Stations . | . . . . . . . . . Recycling Units . | . . . . . . . . . Scanalyzers . | . . . . . . . . . Garrison Access . | . . . . . . . . . Data Cores Recovered . | . . . . . . . . . Used . | . . . . . . . . . Hacking Detections 9 | . . . . 1 2 4 1 1 Full Trace Events 3 | . . . . 1 . . 1 1 Feedback Events . | . . . . . . . . . Feedback Blocked . | . . . . . . . . . Robot Schematics Acquired . | . . . . . . . . . Robots Built . | . . . . . . . . . Authchips . | . . . . . . . . . Time . | . . . . . . . . . Total Robot Build Rating . | . . . . . . . . . Part Schematics Acquired . | . . . . . . . . . Parts Built . | . . . . . . . . . Authchips . | . . . . . . . . . Time . | . . . . . . . . . Total Part Build Rating . | . . . . . . . . . Parts Repaired . | . . . . . . . . . Time . | . . . . . . . . . Parts Recycled . | . . . . . . . . . Recycled Matter . | . . . . . . . . . Retrieved Matter . | . . . . . . . . . Retrieved Components . | . . . . . . . . . Parts Scanalyzed . | . . . . . . . . . Part Schematics Acquired . | . . . . . . . . . Parts Damaged . | . . . . . . . . . Bothacking | -11 -10 -9 -8 -7 -6 -5 -4 -3 ------------ Run | Yrd Mat Mat Mat Fac Fac Fac Fac Res Used RIF Installer . | . . . . . . . . . Robots Hacked . | . . . . . . . . . Non-combat . | . . . . . . . . . Combat . | . . . . . . . . . Robot Hacks Applied . | . . . . . . . . . Relay Couplers Released . | . . . . . . . . . Fabnet Peak Effective % . | . . . . . . . . . Robots Rewired . | . . . . . . . . . Allies Hacked . | . . . . . . . . . Hacks Repelled . | . . . . . . . . . Allies | -11 -10 -9 -8 -7 -6 -5 -4 -3 -------- Run | Yrd Mat Mat Mat Fac Fac Fac Fac Res Total Allies . | . . . . . . . . . Largest Group . | . . . . . . . . . Highest-Rated Group . | . . . . . . . . . Highest-Rated Ally . | . . . . . . . . . Total Orders . | . . . . . . . . . Ally Attacks . | . . . . . . . . . Total Damage . | . . . . . . . . . Kills . | . . . . . . . . . Allies Corrupted . | . . . . . . . . . Allies Melted . | . . . . . . . . . Intel | -11 -10 -9 -8 -7 -6 -5 -4 -3 ------- Run | Yrd Mat Mat Mat Fac Fac Fac Fac Res Robot Analysis Total 1 | . . . . . . 1 . . Derelict Logs Recovered . | . . . . . . . . . Drone Launches . | . . . . . . . . . Drone Recoveries . | . . . . . . . . . Exploration | -11 -10 -9 -8 -7 -6 -5 -4 -3 ------------- Run | Yrd Mat Mat Mat Fac Fac Fac Fac Res Turns Passed 980 | 10 34 90 58 92 95 198 241 162 Spaces Moved 2645 | 19 67 220 154 299 269 550 684 383 Core 100 | 19 67 8 . . . . . 6 Treads . | . . . . . . . . . Legs . | . . . . . . . . . Wheels . | . . . . . . . . . Hover . | . . . . . . . . . Flight 2545 | . . 212 154 299 269 550 684 377 Fastest Speed 27 | 50 50 34 30 27 32 29 29 30 Average Speed 33 | 50 50 34 32 29 32 32 31 38 Slowest Speed 120 | 50 50 50 34 35 35 37 120 50 Overloaded Moves . | . . . . . . . . . Propulsion Burnouts . | . . . . . . . . . Robots Hopped 63 | . . . . 10 7 12 14 20 Cave-ins Triggered . | . . . . . . . . . Exploration Rate (%) 19 | 4 18 26 24 13 14 27 30 18 Regions Visited 8 Branch Regions . Pre-discovered Areas . | . . . . . . . . . Known Exits Taken 6 | . . 1 1 1 1 1 1 . Unknown Exits Taken 2 | 1 1 . . . . . . . Scrap Searched . | . . . . . . . . . Spaces Dug 4 | . . . . . . . 3 1 Terrain Destroyed 4 | . . . . . . . 3 1 Melee 4 | . . . . . . . 3 1 Projectile . | . . . . . . . . . AOE . | . . . . . . . . . Terrain Rammed . | . . . . . . . . . Walls Destroyed . | . . . . . . . . . Machines Disabled . | . . . . . . . . . Actions | -11 -10 -9 -8 -7 -6 -5 -4 -3 --------- Run | Yrd Mat Mat Mat Fac Fac Fac Fac Res Total 2657 | 18 66 230 160 295 266 557 691 374 Wait 6 | . . . 1 . . . 5 . Move 2527 | 18 66 219 154 282 255 527 657 349 Hop 49 | . . . . 7 6 10 12 14 Pick Up 19 | . . 6 1 1 1 7 2 1 Fast Attach 22 | . . 4 2 . 3 5 4 4 Attach 17 | . . 1 2 2 1 6 1 4 Detach 2 | . . . . 2 . . . . Swap 3 | . . . . . . . 3 . Drop 8 | . . . . 1 . 2 4 1 Fire . | . . . . . . . . . Melee 4 | . . . . . . . 3 1 Ram . | . . . . . . . . . Kick . | . . . . . . . . . Crush . | . . . . . . . . . Escape Stasis . | . . . . . . . . . Rewire . | . . . . . . . . . Trap . | . . . . . . . . . Miscellaneous . | . . . . . . . . . Route ------- -11/Scrapyard -10/Materials -9/Materials -8/Materials -7/Factory -6/Factory -5/Factory (discovered 4 exits: *Fac x4) -4/Factory (discovered 5 exits: *Res x4 / *Upp) -3/Research (discovered 1 exit: *Tes) History --------- Turn | Location | Event 2 | -11/Scrapyard | Discovered new exit (range 16) 11 | -11/Scrapyard | Entered Materials 40 | -10/Materials | Discovered new exit (range 10) 45 | -10/Materials | Entered another Materials area 45 | -9/Materials | Evolved 2 slots: Utility x2 125 | -9/Materials | Discovered new exit (range 15) 135 | -9/Materials | Identified exit to Materials 135 | -9/Materials | Entered another Materials area 135 | -8/Materials | Evolved 2 slots: Propulsion x1, Utility x1 192 | -8/Materials | Discovered new exit (range 5) 193 | -8/Materials | Identified exit to Factory 193 | -8/Materials | Entered Factory 193 | -7/Factory | Evolved 2 slots: Propulsion x1, Utility x1 277 | -7/Factory | Discovered new exit (range 19) 283 | -7/Factory | Identified exit to Factory 285 | -7/Factory | Entered another Factory area 285 | -6/Factory | Evolved 2 slots: Utility x2 328 | -6/Factory | Spotted B-75 Beast 377 | -6/Factory | Discovered new exit (range 10) 380 | -6/Factory | Identified exit to Factory 380 | -6/Factory | Entered another Factory area 380 | -5/Factory | Evolved 2 slots: Utility x2 530 | -5/Factory | Lost 6 parts (5n1u) 563 | -5/Factory | Identified exit to Factory 578 | -5/Factory | Entered another Factory area 578 | -4/Factory | Evolved 2 slots: Utility x2 602 | -4/Factory | Spotted B-86 Titan 691 | -4/Factory | Discovered new exit (range 19) 695 | -4/Factory | Identified exit to Upper Caves 703 | -4/Factory | Found Prototype Processor 703 | -4/Factory | Identified Exp. Terrain Scan Processor 724 | -4/Factory | Build established: Hacker-Scout 786 | -4/Factory | Identified exit to Research 819 | -4/Factory | Entered Research 819 | -3/Research | Evolved 2 slots: Utility x2 858 | -3/Research | Discovered new exit (range 9) 861 | -3/Research | Identified exit to Testing 899 | -3/Research | Lost 9 parts (2p3n3u1w) 923 | -3/Research | Core integrity fell below 50% 954 | -3/Research | Core integrity fell below 20% 981 | -3/Research | Destroyed by S-43 Plague with Heavy Machine Gun Last Messages --------------- Hacking Suite destroyed. Penetrated by Slug. Knocked back. S-43 Plague destroyed. K-01 Serf destroyed. Penetrated by Slug. Slug penetrates Wall. Acquired Prototype Flight Unit. Identified Diametric Drive. Penetrated by Slug. Impulse Thruster Array destroyed. Hacking Suite destroyed. Critical hit (Burn: +50). Exp. Terrain Scan Processor destroyed. Diametric Drive destroyed. Acquired ECM Suite. Impulse Thruster destroyed. Imp. Signal Interpreter destroyed. Nuclear Pulse Array destroyed. S-43 Plague destroyed. Map ----- +----------------------------------------------------+ | ?????????????????????????????????????????????????? | | ?????????????????????????????????????????????????? | | ?????????????????????????????????????????????????? | | ?????????????????????????????????????????????????? | | ?????????????????????????????????????????????????? | | ?????????????????????????????????????????????????? | | ?????????????????????????????????????????????????? | | ?????????????????????????????????????????????????? | | ?????????????????????????????????????????????????? | | ?????????????????????????????????????????????????? | | ?????????????????????????????????????????????????? | | ?????????????????????????????????????????????????? | | ?????????????????????????????????????????????????? | | ?????????????????????###################?????????? | | ?????????????????????# # """ #?????????? | | ?????????????????????# # """ #?????????? | | ?????????????????????#""" # """ #?????????? | | ?????????????????????#""" # #?????????? | | ?????????????????????#""" #/ #?????????? | | ?????????????????????#""" + ! ! #?????????? | | ?????????????????????#""" # #?????????? | | ?????????????????????# # #?????????? | | ?????????????????????# # #?????????? | | ##############+#############;######+####?????????? | | #?????????? | | ???# A s s = s@u #?????????? | | ???# s % u g #?????????? | | ???# s s * g #?????????? | | ???# ###########################+#####????????? | | ???# #??????????????????????# #????????? | | ???# #??????????????????????# #????????? | | ???+ #??????????????????????# #????????? | | ???# #??????????????????????# #????????? | | ???# "??????????????????????# #????????? | | ???# #??????????????????????# #????????? | | ???# #??????????????????????# """ #????????? | | ???# #??????????????????????# """ #????????? | | ##?# #??????????????????????# """ #????????? | | #?# #??????????????????????##########????????? | | #?# #????????????????????????????????????????? | | #?# #????????????????????????????????????????? | | #?# ##############???????????????????????????? | | #?# # ! #???????????????????????????? | | #?# # #???????????????????????????? | | ### # #???????????????????????????? | | # #???????????????????????????? | | # #???????????????????????????? | | + #???????????????????????????? | | # #???????????????????????????? | | +### # #???????????????????????????? | +----------------------------------------------------+ Best States ------------- Heat Dissipation 46 Energy Generation 15 Energy Capacity 265 Matter Stores 232 Matter Capacity 300 Sight Range 22 Robot Scan Range 16 Terrain Scan Density 1010 ECM Strength 1 Armor Coverage 225 Evasion (%) 64 Offensive Hacking 32 Defensive Hacking 10 Item Schematics ----------------- None Robot Schematics ------------------ None Fabricated ------------ Nothing Alien Tech Used ----------------- None Achievements -------------- None Challenges ------------ None Game ------ Seed TimingFieldBasin Manual? 0 Play Time 00:24:27 Cumulative 207.4 hours Start 2024.08.16 @ 01:23:20 End 2024.08.16 @ 01:47:30 Sessions 1 Manual Loads 0 Difficulty Rogue Special Mode None Game No. 375 Rogue 373 Adventurer 2 Explorer 0 Win Type - Total 9 Types 8/0/0/1/0/0/0/0/0 Lore% 72 Gallery% 65 Achievement% 56 Wizard Run 0 Options --------- Layout 0 ASCII 0 Keyboard 1 Movement Numpad Keybinds 1 Fullscreen 2 Font 18/SmallcapsGlow Map View 76x50 Zoom Use 0% Tactical HUD 1 Map Filters NONE Filters NONE Steam 1 RUN: cdbe6528-44e8-4374-87e8-63dbb79b52e4